fUST/lending_fUST_20250723
["ID","MTS","AMOUNT","RATE_DAILY","PERIOD"]
[374108236,1753209511190,-202.39091256,0.0001677,2]
[374108237,1753209513451,-218.47,0.0001677,2]
[374108238,1753209515601,-182.00913961,0.0001677,2]
[374108239,1753209526731,624.716073,0.00016267,2]
[374108240,1753209527437,825.7500264,0.00016319,2]
[374108241,1753209538258,202.39091256,0.0001667,2]
[374108242,1753209546787,185.33120747,0.00016719,2]
[374108243,1753209547174,185.33120744,0.00016721,2]
[374108244,1753209547560,185.33120744,0.00016723,2]
[374108245,1753209547937,185.33120744,0.00016725,2]
[374108246,1753209558073,162.0,0.00024,120]
[374108247,1753209559486,162.0,0.000251,120]
[374108248,1753209604638,2227.520759,0.00015824,2]
[374108249,1753209613068,400.0,0.00024658,120]
[374108250,1753209636193,7849.49172709,0.00015824,2]
[374108251,1753209636221,1891.30256171,0.00015824,2]
[374108252,1753209644586,199.5293167,0.00015824,2]
[374108253,1753209701928,202.39091256,0.0001667,2]
[374108254,1753209765515,1017.3,0.00025145,30]
[374108255,1753209829531,208.565833,0.00016267,2]
[374108256,1753209829897,323.821738,0.00016318,2]
[374108257,1753209830254,291.72783764,0.00016318,2]
[374108258,1753209872221,4008.6195456,0.00015824,2]
[374108259,1753209918428,742.02828153,0.00021918,120]
[374108260,1753209930783,2181.9005249,0.0001595,2]
[374108261,1753209997672,210.811865,0.00015949,2]
[374108262,1753209997726,10000.0,0.00015823,2]
[374108263,1753209997869,210.811865,0.00015949,120]
[374108264,1753210068665,2871.240414,0.00015822,2]
[374108265,1753210132208,228.27545968,0.00016317,2]
[374108266,1753210132693,667.757475,0.00013699,2]
[374108277,1753210232622,-300.0,0.00016769,2]
[374108279,1753210232633,-300.0,0.00016769,2]
[374108281,1753210232642,-797.69512592,0.00016769,2]
[374108284,1753210232656,-402.30487408,0.00016769,2]
[374108286,1753210232665,-159.88804572,0.0001677,2]
[374108290,1753210232697,-1325.2764493,0.0001677,2]
[374108292,1753210232709,-908.43607304,0.0001677,2]
[374108294,1753210232718,-74.0063156,0.0001677,2]
[374108639,1753210238502,-4122.85175035,0.0001677,2]
[374108640,1753210238512,-191.69491963,0.00016815,2]
[374108641,1753210238521,-84.50767022,0.00016821,2]
[374108642,1753210238604,-379.52742361,0.00016821,2]
[374108643,1753210238614,-460.0,0.00016821,2]
[374108644,1753210238624,-340.0,0.00016821,2]
[374108645,1753210238634,-339.47748696,0.00016821,2]
[374108646,1753210238644,-460.0,0.00016821,2]
[374108647,1753210238653,-460.0,0.00016821,2]
[374108648,1753210238662,-460.0,0.00016821,2]
[374108649,1753210238672,-460.0,0.00016821,2]
[374108650,1753210238681,-460.0,0.00016821,2]
[374108652,1753210238690,-889.22,0.00016821,2]
[374108653,1753210238699,-967.41,0.00016821,2]
[374108654,1753210238709,-3933.01,0.00016821,2]
[374108656,1753210238719,-460.0,0.00016821,2]
[374108658,1753210238728,-500.55402568,0.00016821,2]
[374108660,1753210238738,-460.0,0.00016821,2]
[374108661,1753210238747,-460.0,0.00016821,2]
[374108663,1753210238757,-14031.36269767,0.00016821,2]
[374108665,1753210238766,-460.0,0.00016822,2]
[374108666,1753210238775,-461.16201749,0.00016822,2]
[374108668,1753210238788,-460.0,0.00016822,2]
[374108670,1753210238798,-460.0,0.00016822,2]
[374108671,1753210238807,-460.0,0.00016822,2]
[374108674,1753210238817,-460.0,0.00016822,2]
[374108676,1753210238826,-460.0,0.00016822,2]
[374108677,1753210238836,-500.0,0.00016822,2]
[374108679,1753210238845,-460.0,0.00016822,2]
[374108681,1753210238855,-460.0,0.00016822,2]
[374108683,1753210238865,-460.0,0.00016822,2]
[374108686,1753210238874,-460.0,0.00016822,2]
[374108687,1753210238883,-496.19713642,0.00016822,2]
[374108690,1753210238893,-460.0,0.00016822,2]
[374108692,1753210238906,-460.0,0.00016822,2]
[374108693,1753210238916,-454.63921108,0.00016822,2]
[374108694,1753210238926,-460.0,0.00016822,2]
[374108695,1753210238935,-460.0,0.00016822,2]
[374108696,1753210238946,-460.0,0.00016822,2]
[374108697,1753210238956,-359.59110591,0.00016822,2]
[374108698,1753210238966,-460.0,0.00016822,2]
[374108699,1753210238975,-460.0,0.00016822,2]
[374108700,1753210238985,-460.0,0.00016822,2]
[374108701,1753210238994,-460.0,0.00016822,2]
[374108702,1753210239004,-466.30099363,0.00016822,2]
[374108703,1753210239014,-461.80732137,0.00016822,2]
[374108704,1753210239024,-460.0,0.00016822,2]
[374108705,1753210239036,-479.39154465,0.00016822,2]
[374108706,1753210239045,-363.69608515,0.00016822,2]
[374108707,1753210239054,-533.10150346,0.00016822,2]
[374108708,1753210239064,-460.0,0.00016823,2]
[374108709,1753210239073,-460.0,0.00016823,2]
[374108710,1753210239082,-462.68867771,0.00016823,2]
[374108711,1753210239091,-460.0,0.00016823,2]
[374108712,1753210239101,-460.0,0.00016823,2]
[374108713,1753210239111,-460.0,0.00016823,2]
[374108714,1753210239120,-460.0,0.00016823,2]
[374108715,1753210239131,-460.0,0.00016823,2]
[374108716,1753210239140,-460.0,0.00016823,2]
[374108717,1753210239150,-460.0,0.00016823,2]
[374108718,1753210239159,-455.0435308,0.00016823,2]
[374108719,1753210239168,-460.0,0.00016823,2]
[374108720,1753210239178,-795.66029935,0.00016823,2]
[374108721,1753210239187,-460.0,0.00016823,2]
[374108722,1753210239196,-460.0,0.00016823,2]
[374108723,1753210239206,-460.48401583,0.00016823,2]
[374108724,1753210239216,-460.0,0.00016823,2]
[374108725,1753210239226,-460.0,0.00016823,2]
[374108726,1753210239235,-460.0,0.00016823,2]
[374108727,1753210239244,-460.0,0.00016823,2]
[374108728,1753210239254,-460.0,0.00016823,2]
[374108729,1753210239263,-460.0,0.00016823,2]
[374108730,1753210239272,-500.0,0.00016823,2]
[374108731,1753210239284,-500.0,0.00016823,2]
[374108732,1753210239294,-5587.21,0.00016823,2]
[374108733,1753210239303,-1108.38,0.00016823,2]
[374108734,1753210239313,-1005.99,0.00016823,2]
[374108735,1753210239323,-460.0,0.00016823,2]
[374108736,1753210239332,-460.0,0.00016823,2]
[374108737,1753210239341,-578.37340759,0.00016823,2]
[374108738,1753210239351,-460.0,0.00016823,2]
[374108739,1753210239360,-5283.6,0.00016823,2]
[374108740,1753210239370,-460.0,0.00016823,2]
[374108741,1753210239379,-1079.55,0.00016823,2]
[374108742,1753210239388,-460.0,0.00016823,2]
[374108743,1753210239397,-460.0,0.00016823,2]
[374108744,1753210239407,-3137.23,0.00016823,2]
[374108745,1753210239416,-460.0,0.00016823,2]
[374108746,1753210239426,-558.47,0.00016823,2]
[374108747,1753210239436,-1196.19,0.00016823,2]
[374108748,1753210239446,-535.59,0.00016823,2]
[374108749,1753210239456,-460.0,0.00016823,2]
[374108750,1753210239465,-460.0,0.00016823,2]
[374108751,1753210239474,-1079.29,0.00016823,2]
[374108752,1753210239484,-500.0,0.00016823,2]
[374108753,1753210239493,-308.64594959,0.00016823,2]
[374108754,1753210239502,-314.36805592,0.00016823,2]
[374108755,1753210239512,-500.0,0.00016823,2]
[374108756,1753210239522,-500.0,0.00016823,2]
[374108757,1753210239533,-334.31347703,0.00016823,2]
[374108758,1753210239543,-500.0,0.00016823,2]
[374108759,1753210239552,-500.0,0.00016823,2]
[374108760,1753210239561,-500.0,0.00016823,2]
[374108761,1753210239570,-500.0,0.00016823,2]
[374108762,1753210239581,-391.44421863,0.00016823,2]
[374108763,1753210239590,-500.0,0.00016823,2]
[374108764,1753210239600,-460.0,0.00016824,2]
[374108765,1753210239609,-460.0,0.00016824,2]
[374108766,1753210239618,-460.0,0.00016824,2]
[374108767,1753210239628,-460.0,0.00016824,2]
[374108768,1753210239637,-460.0,0.00016824,2]
[374108769,1753210239647,-460.0,0.00016824,2]
[374108770,1753210239656,-460.0,0.00016824,2]
[374108771,1753210239665,-460.0,0.00016824,2]
[374108772,1753210239675,-460.0,0.00016824,2]
[374108773,1753210239685,-511.3229766,0.00016824,2]
[374108774,1753210239694,-460.0,0.00016824,2]
[374108775,1753210239703,-460.0,0.00016824,2]
[374108776,1753210239713,-460.0,0.00016824,2]
[374108777,1753210239722,-460.0,0.00016824,2]
[374108778,1753210239732,-460.0,0.00016824,2]
[374108779,1753210239741,-460.0,0.00016824,2]
[374108780,1753210239750,-460.0,0.00016824,2]
[374108781,1753210239760,-460.0,0.00016824,2]
[374108782,1753210239769,-460.0,0.00016824,2]
[374108783,1753210239778,-460.0,0.00016824,2]
[374108784,1753210239788,-460.0,0.00016824,2]
[374108785,1753210239798,-460.0,0.00016824,2]
[374108786,1753210239807,-460.0,0.00016824,2]
[374108787,1753210239816,-460.0,0.00016824,2]
[374108788,1753210239825,-497.14062364,0.00016824,2]
[374108789,1753210239834,-460.0,0.00016824,2]
[374108790,1753210239843,-462.25412767,0.00016824,2]
[374108791,1753210239853,-746.62,0.00016824,2]
[374108792,1753210239863,-471.42,0.00016824,2]
[374108793,1753210239872,-460.0,0.00016824,2]
[374108794,1753210239882,-460.0,0.00016824,2]
[374108795,1753210239891,-460.0,0.00016824,2]
[374108796,1753210239904,-460.0,0.00016824,2]
[374108797,1753210239914,-460.0,0.00016824,2]
[374108798,1753210239924,-460.0,0.00016824,2]
[374108799,1753210239933,-632.55,0.00016824,2]
[374108800,1753210239942,-460.0,0.00016824,2]
[374108801,1753210239952,-460.0,0.00016824,2]
[374108802,1753210239961,-606.59,0.00016824,2]
[374108803,1753210239970,-500.0,0.00016824,2]
[374108804,1753210239980,-500.0,0.00016824,2]
[374108805,1753210239989,-874.42,0.00016824,2]
[374108806,1753210239999,-1090.84,0.00016824,2]
[374108807,1753210240008,-460.0,0.00016824,2]
[374108808,1753210240018,-1342.67,0.00016824,2]
[374108809,1753210240027,-488.38,0.00016824,2]
[374108810,1753210240038,-460.0,0.00016824,2]
[374108811,1753210240047,-460.0,0.00016824,2]
[374108812,1753210240056,-460.0,0.00016824,2]
[374108813,1753210240066,-460.0,0.00016824,2]
[374108814,1753210240075,-460.0,0.00016824,2]
[374108815,1753210240084,-460.0,0.00016824,2]
[374108816,1753210240093,-1118.89,0.00016824,2]
[374108817,1753210240102,-731.94,0.00016824,2]
[374108818,1753210240112,-1345.13,0.00016824,2]
[374108819,1753210240121,-460.0,0.00016824,2]
[374108820,1753210240130,-1187.11,0.00016824,2]
[374108821,1753210240139,-168.98431095,0.00016824,2]
[374108822,1753210240148,-2137.7,0.00016824,2]
[374108823,1753210240157,-460.0,0.00016824,2]
[374108824,1753210240166,-460.0,0.00016824,2]
[374108825,1753210240176,-1349.67,0.00016824,2]
[374108826,1753210240185,-463.15,0.00016824,2]
[374108827,1753210240194,-460.0,0.00016824,2]
[374108828,1753210240203,-460.0,0.00016824,2]
[374108829,1753210240213,-460.0,0.00016824,2]
[374108831,1753210240313,-460.0,0.00016824,2]
[374108832,1753210240323,-460.0,0.00016824,2]
[374108834,1753210240333,-1694.69,0.00016824,2]
[374108835,1753210240342,-460.0,0.00016824,2]
[374108837,1753210240352,-460.0,0.00016824,2]
[374108839,1753210240361,-754.36,0.00016824,2]
[374108842,1753210240371,-460.0,0.00016824,2]
[374108843,1753210240380,-929.4,0.00016824,2]
[374108845,1753210240389,-436.1817012,0.00016824,2]
[374108848,1753210240398,-593.42312737,0.00016824,2]
[374108850,1753210240408,-1020.16,0.00016824,2]
[374108851,1753210240417,-646.92,0.00016824,2]
[374108854,1753210240426,-462.85014543,0.00016824,2]
[374108855,1753210240435,-1358.12,0.00016824,2]
[374108858,1753210240444,-460.0,0.00016824,2]
[374108859,1753210240454,-160.0,0.00016824,2]
[374108861,1753210240463,-460.0,0.00016825,2]
[374108863,1753210240473,-264.69919789,0.00016825,2]
[374108865,1753210240482,-460.0,0.00016825,2]
[374108867,1753210240492,-460.0,0.00016825,2]
[374108870,1753210240501,-460.0,0.00016825,2]
[374108872,1753210240511,-460.0,0.00016825,2]
[374108874,1753210240520,-460.0,0.00016825,2]
[374108876,1753210240529,-460.0,0.00016825,2]
[374108878,1753210240540,-460.0,0.00016825,2]
[374108880,1753210240549,-460.0,0.00016825,2]
[374108881,1753210240559,-463.18449326,0.00016825,2]
[374108883,1753210240568,-460.50614141,0.00016825,2]
[374108885,1753210240577,-460.0,0.00016825,2]
[374108888,1753210240590,-460.0,0.00016825,2]
[374108890,1753210240599,-460.0,0.00016825,2]
[374108892,1753210240609,-460.0,0.00016825,2]
[374108894,1753210240618,-605.94981198,0.00016825,2]
[374108896,1753210240628,-460.0,0.00016825,2]
[374108898,1753210240637,-462.89366634,0.00016825,2]
[374108900,1753210240646,-460.0,0.00016825,2]
[374108902,1753210240655,-461.5477359,0.00016825,2]
[374108904,1753210240665,-460.0,0.00016825,2]
[374108906,1753210240675,-460.0,0.00016825,2]
[374108908,1753210240684,-460.0,0.00016825,2]
[374108910,1753210240693,-460.0,0.00016825,2]
[374108912,1753210240702,-460.0,0.00016825,2]
[374108914,1753210240712,-460.0,0.00016825,2]
[374108916,1753210240721,-460.0,0.00016825,2]
[374108918,1753210240731,-553.33,0.00016825,2]
[374108920,1753210240740,-553.25,0.00016825,2]
[374108922,1753210240750,-460.0,0.00016825,2]
[374108924,1753210240760,-460.0,0.00016825,2]
[374108926,1753210240769,-1153.71,0.00016825,2]
[374108928,1753210240779,-460.0,0.00016825,2]
[374108930,1753210240792,-460.0,0.00016825,2]
[374108932,1753210240801,-460.0,0.00016825,2]
[374108934,1753210240811,-460.0,0.00016825,2]
[374108936,1753210240821,-460.0,0.00016825,2]
[374108938,1753210240830,-460.0,0.00016825,2]
[374108940,1753210240840,-205.89505864,0.00016825,2]
[374108942,1753210240850,-1418.31,0.00016825,2]
[374108944,1753210240859,-460.0,0.00016825,2]
[374108946,1753210240869,-460.0,0.00016825,2]
[374108948,1753210240878,-460.0,0.00016825,2]
[374108950,1753210240887,-460.0,0.00016825,2]
[374108952,1753210240899,-461.93004898,0.00016825,2]
[374108953,1753210240910,-460.0,0.00016825,2]
[374108954,1753210240919,-460.0,0.00016825,2]
[374108955,1753210240928,-460.0,0.00016825,2]
[374108956,1753210240938,-557.74,0.00016825,2]
[374108957,1753210240948,-460.0,0.00016825,2]
[374108958,1753210240958,-462.97622952,0.00016825,2]
[374108959,1753210240967,-460.0,0.00016825,2]
[374108960,1753210240979,-460.0,0.00016825,2]
[374108961,1753210240989,-460.0,0.00016825,2]
[374108962,1753210240998,-460.0,0.00016825,2]
[374108963,1753210241008,-460.0,0.00016825,2]
[374108964,1753210241017,-1362.87,0.00016825,2]
[374108965,1753210241026,-1064.63,0.00016825,2]
[374108966,1753210241037,-571.13,0.00016825,2]
[374108967,1753210241047,-460.0,0.00016825,2]
[374108968,1753210241056,-460.0,0.00016825,2]
[374108969,1753210241065,-460.0,0.00016825,2]
[374108970,1753210241074,-460.0,0.00016825,2]
[374108971,1753210241084,-460.0,0.00016825,2]
[374108972,1753210241093,-460.0,0.00016825,2]
[374108973,1753210241102,-460.0,0.00016825,2]
[374108974,1753210241111,-460.0,0.00016825,2]
[374108975,1753210241120,-460.0,0.00016825,2]
[374108976,1753210241130,-450.5486287,0.00016825,2]
[374108977,1753210241139,-1776.12,0.00016825,2]
[374108978,1753210241149,-460.0,0.00016825,2]
[374108979,1753210241158,-544.55,0.00016825,2]
[374108980,1753210241167,-191.8188262,0.00016825,2]
[374108981,1753210241176,-691.11,0.00016825,2]
[374108982,1753210241186,-460.0,0.00016825,2]
[374108983,1753210241195,-460.0,0.00016825,2]
[374108984,1753210241204,-460.0,0.00016825,2]
[374108985,1753210241214,-460.0,0.00016825,2]
[374108986,1753210241223,-460.0,0.00016825,2]
[374108987,1753210241232,-863.13,0.00016825,2]
[374108988,1753210241241,-547.67,0.00016825,2]
[374108989,1753210241251,-460.0,0.00016825,2]
[374108990,1753210241260,-593.18229705,0.00016825,2]
[374108991,1753210241270,-460.0,0.00016825,2]
[374108992,1753210241279,-460.0,0.00016825,2]
[374108993,1753210241291,-512.05339899,0.00016825,2]
[374108994,1753210241301,-460.0,0.00016825,2]
[374108995,1753210241310,-460.0,0.00016825,2]
[374108996,1753210241319,-463.11950371,0.00016826,2]
[374108997,1753210241328,-460.0,0.00016826,2]
[374108998,1753210241338,-460.0,0.00016826,2]
[374108999,1753210241347,-5101.83,0.00016826,2]
[374109000,1753210241357,-460.0,0.00016826,2]
[374109001,1753210241366,-460.0,0.00016826,2]
[374109002,1753210241376,-1108.99,0.00016826,2]
[374109003,1753210241385,-460.0,0.00016826,2]
[374109004,1753210241395,-460.0,0.00016826,2]
[374109005,1753210241404,-460.0,0.00016826,2]
[374109006,1753210241413,-460.0,0.00016826,2]
[374109007,1753210241423,-4461.22,0.00016826,2]
[374109008,1753210241433,-460.0,0.00016826,2]
[374109009,1753210241442,-4275.34,0.00016826,2]
[374109010,1753210241452,-605.93,0.00016826,2]
[374109011,1753210241461,-460.0,0.00016826,2]
[374109012,1753210241471,-688.73,0.00016826,2]
[374109013,1753210241480,-460.0,0.00016826,2]
[374109014,1753210241490,-460.0,0.00016826,2]
[374109015,1753210241499,-462.21027629,0.00016826,2]
[374109016,1753210241509,-460.0,0.00016826,2]
[374109017,1753210241519,-460.0,0.00016826,2]
[374109018,1753210241528,-460.0,0.00016826,2]
[374109019,1753210241540,-909.71,0.00016826,2]
[374109020,1753210241550,-871.81,0.00016826,2]
[374109021,1753210241560,-2901.81,0.00016826,2]
[374109022,1753210241569,-460.0,0.00016826,2]
[374109023,1753210241579,-460.0,0.00016826,2]
[374109024,1753210241588,-460.0,0.00016826,2]
[374109025,1753210241598,-1465.54,0.00016826,2]
[374109026,1753210241607,-824.09,0.00016826,2]
[374109027,1753210241616,-460.0,0.00016826,2]
[374109028,1753210241626,-460.0,0.00016826,2]
[374109029,1753210241635,-460.0,0.00016826,2]
[374109030,1753210241645,-460.0,0.00016826,2]
[374109031,1753210241654,-460.0,0.00016826,2]
[374109032,1753210241663,-460.0,0.00016827,2]
[374109033,1753210241673,-460.0,0.00016827,2]
[374109034,1753210241682,-2213.22,0.00016827,2]
[374109035,1753210241692,-460.0,0.00016828,2]
[374109036,1753210241711,-460.0,0.00016828,2]
[374109037,1753210241723,-460.0,0.00016828,2]
[374109038,1753210241732,-500.0,0.00016873,2]
[374109039,1753210241742,-500.0,0.00016873,2]
[374109040,1753210241753,-500.0,0.00016873,2]
[374109041,1753210241762,-500.0,0.00016873,2]
[374109042,1753210241772,-548.06828774,0.00016873,2]
[374109043,1753210241782,-503.48270501,0.00016873,2]
[374109044,1753210241792,-500.0,0.00016873,2]
[374109045,1753210241802,-500.0,0.00016873,2]
[374109046,1753210241811,-500.0,0.00016873,2]
[374109047,1753210241821,-371.28990817,0.00016873,2]
[374109048,1753210241831,-500.0,0.00016873,2]
[374109049,1753210241841,-643.73387342,0.00016873,2]
[374109050,1753210241850,-500.0,0.00016873,2]
[374109051,1753210241860,-179.06905344,0.00016873,2]
[374109052,1753210241870,-500.0,0.00016873,2]
[374109053,1753210241880,-500.0,0.00016873,2]
[374109054,1753210241890,-508.41565789,0.00016873,2]
[374109055,1753210241904,-500.18337289,0.00016873,2]
[374109056,1753210241914,-500.0,0.00016873,2]
[374109057,1753210241924,-585.15769766,0.00016898,2]
[374109058,1753210241933,-5275.87341899,0.000169,2]
[374109059,1753210241944,-4045.63016767,0.00016998,2]
[374109060,1753210241953,-368.84286298,0.00017,3]
[374109061,1753210241963,-518.21,0.00017078,3]
[374109062,1753210241973,-690.9,0.00017088,3]
[374109063,1753210241983,-345.45,0.00017088,3]
[374109064,1753210241992,-172.72,0.00017088,3]
[374109065,1753210242002,-477.47747056,0.00017095,2]
[374109066,1753210242012,-460.0,0.00017095,2]
[374109067,1753210242021,-461.97428853,0.00017095,2]
[374109068,1753210242031,-889.22,0.00017095,2]
[374109069,1753210242042,-967.41,0.00017095,2]
[374109070,1753210242051,-3933.01,0.00017095,2]
[374109071,1753210242061,-335.99609404,0.00017095,2]
[374109072,1753210242070,-460.0,0.00017095,2]
[374109073,1753210242080,-460.0,0.00017096,2]
[374109074,1753210242090,-460.0,0.00017096,2]
[374109075,1753210242100,-460.0,0.00017096,2]
[374109076,1753210242109,-235.5873645,0.00017096,2]
[374109077,1753210242118,-460.0,0.00017096,2]
[374109078,1753210242128,-424.94696185,0.00017097,2]
[374109079,1753210242140,-460.0,0.00017097,2]
[374109080,1753210242149,-460.0,0.00017097,2]
[374109081,1753210242159,-460.0,0.00017097,2]
[374109082,1753210242169,-460.0,0.00017097,2]
[374109083,1753210242179,-460.0,0.00017097,2]
[374109084,1753210242188,-5587.21,0.00017097,2]
[374109085,1753210242197,-1108.38,0.00017097,2]
[374109086,1753210242207,-1005.99,0.00017097,2]
[374109087,1753210242217,-473.72615782,0.00017097,2]
[374109088,1753210242227,-460.0,0.00017097,2]
[374109089,1753210242236,-460.0,0.00017097,2]
[374109090,1753210242246,-5283.6,0.00017097,2]
[374109091,1753210242255,-1079.55,0.00017097,2]
[374109092,1753210242265,-460.0,0.00017097,2]
[374109093,1753210242274,-460.0,0.00017097,2]
[374109094,1753210242413,-3137.23,0.00017097,2]
[374109095,1753210242423,-212.28949371,0.00017097,2]
[374109096,1753210242432,-558.47,0.00017097,2]
[374109097,1753210242442,-1196.19,0.00017097,2]
[374109098,1753210242451,-535.59,0.00017097,2]
[374109099,1753210242461,-460.0,0.00017097,2]
[374109100,1753210242470,-1079.29,0.00017097,2]
[374109101,1753210242480,-578.69,0.00017098,2]
[374109102,1753210242491,-460.0,0.00017098,2]
[374109103,1753210242500,-460.0,0.00017098,2]
[374109104,1753210242509,-460.0,0.00017098,2]
[374109105,1753210242519,-460.0,0.00017098,2]
[374109106,1753210242528,-460.0,0.00017098,2]
[374109107,1753210242538,-460.0,0.00017098,2]
[374109108,1753210242548,-460.0,0.00017098,2]
[374109109,1753210242557,-746.62,0.00017098,2]
[374109110,1753210242567,-471.42,0.00017098,2]
[374109111,1753210242577,-632.55,0.00017098,2]
[374109112,1753210242586,-606.59,0.00017098,2]
[374109113,1753210242595,-874.42,0.00017098,2]
[374109114,1753210242605,-1090.84,0.00017098,2]
[374109115,1753210242614,-165.98017348,0.00017098,2]
[374109116,1753210242623,-1342.67,0.00017098,2]
[374109117,1753210242632,-488.38,0.00017098,2]
[374109118,1753210242642,-460.0,0.00017098,2]
[374109119,1753210242651,-460.0,0.00017098,2]
[374109120,1753210242661,-460.0,0.00017098,2]
[374109121,1753210242670,-460.0,0.00017098,2]
[374109122,1753210242679,-460.0,0.00017098,2]
[374109123,1753210242689,-1118.89,0.00017098,2]
[374109124,1753210242698,-731.94,0.00017098,2]
[374109125,1753210242707,-1345.13,0.00017098,2]
[374109126,1753210242716,-559.33238142,0.00017098,2]
[374109127,1753210242726,-1187.11,0.00017098,2]
[374109128,1753210242735,-2137.7,0.00017098,2]
[374109129,1753210242744,-460.0,0.00017098,2]
[374109130,1753210242756,-1349.67,0.00017098,2]
[374109131,1753210242765,-460.0,0.00017098,2]
[374109132,1753210242775,-460.0,0.00017098,2]
[374109133,1753210242786,-460.0,0.00017098,2]
[374109134,1753210242795,-1694.69,0.00017098,2]
[374109135,1753210242805,-460.0,0.00017098,2]
[374109136,1753210242815,-460.0,0.00017098,2]
[374109137,1753210242824,-754.36,0.00017098,2]
[374109138,1753210242833,-929.4,0.00017098,2]
[374109139,1753210242843,-1020.16,0.00017098,2]
[374109140,1753210242853,-646.92,0.00017098,2]
[374109141,1753210242862,-1358.12,0.00017098,2]
[374109142,1753210242872,-460.0,0.00017098,2]
[374109143,1753210242882,-460.0,0.00017099,2]
[374109144,1753210242891,-400.40905759,0.00017099,2]
[374109145,1753210242905,-460.0,0.00017099,2]
[374109146,1753210242915,-460.0,0.00017099,2]
[374109147,1753210242925,-460.0,0.00017099,2]
[374109148,1753210242934,-460.0,0.00017099,2]
[374109149,1753210242944,-460.0,0.00017099,2]
[374109150,1753210242953,-460.0,0.00017099,2]
[374109151,1753210242962,-460.0,0.00017099,2]
[374109152,1753210242973,-553.33,0.00017099,2]
[374109153,1753210242982,-553.25,0.00017099,2]
[374109154,1753210242991,-1153.71,0.00017099,2]
[374109155,1753210243000,-460.0,0.00017099,2]
[374109156,1753210243009,-460.0,0.00017099,2]
[374109157,1753210243019,-460.0,0.00017099,2]
[374109158,1753210243028,-1418.31,0.00017099,2]
[374109159,1753210243039,-460.0,0.00017099,2]
[374109160,1753210243049,-460.0,0.00017099,2]
[374109161,1753210243059,-460.0,0.00017099,2]
[374109162,1753210243068,-557.74,0.00017099,2]
[374109163,1753210243078,-465.53488581,0.00017099,2]
[374109164,1753210243087,-460.0,0.00017099,2]
[374109165,1753210243097,-460.0,0.00017099,2]
[374109166,1753210243107,-1362.87,0.00017099,2]
[374109167,1753210243116,-1064.63,0.00017099,2]
[374109168,1753210243125,-571.13,0.00017099,2]
[374109169,1753210243135,-460.0,0.00017099,2]
[374109170,1753210243144,-460.0,0.00017099,2]
[374109171,1753210243153,-460.0,0.00017099,2]
[374109172,1753210243163,-460.0,0.00017099,2]
[374109173,1753210243172,-460.0,0.00017099,2]
[374109174,1753210243182,-588.73,0.00017099,2]
[374109175,1753210243191,-1351.51,0.00017099,2]
[374109176,1753210243200,-1776.12,0.00017099,2]
[374109177,1753210243210,-544.55,0.00017099,2]
[374109178,1753210243219,-2704.27,0.00017099,2]
[374109179,1753210243229,-691.11,0.00017099,2]